bitfinex-derivatives/quotes_SOLF0:USTF0_20250626
["timestamp","ask_amount","ask_price","bid_price","bid_amount"]
[1750932011645,5.15083679,143.82,143.81,15.61485687]
[1750932011948,2.22645954,143.83,143.82,6.9494]
[1750932012142,2.22645954,143.83,143.82,13.44767047]
[1750932013751,12.05194557,143.83,143.81,8.66495687]
[1750932013945,12.05160262,143.82,143.81,6.49781731]
[1750932014254,19.00120262,143.82,143.8,6.9501]
[1750932014453,2.22645954,143.81,143.79,8.66495687]
[1750932014649,2.22759601,143.8,143.79,8.66495687]
[1750932015555,2.22759601,143.8,143.79,15.61575687]
[1750932016055,6.9499,143.81,143.79,15.61575687]
[1750932016252,4.67045677,143.84,143.8,6.9503]
[1750932016449,2.22759601,143.81,143.79,8.66495687]
[1750932018057,2.22759601,143.81,143.8,6.9503]
[1750932018356,4.64839945,143.81,143.8,6.9503]
[1750932018959,2.42080344,143.81,143.8,6.9503]
[1750932019152,4.64839945,143.81,143.8,6.9503]
[1750932021357,9.8080032,143.81,143.8,6.9503]
[1750932021660,9.8080032,143.81,143.79,8.66495687]
[1750932021955,12.27492915,143.8,143.78,8.66495687]
[1750932022158,2.22759601,143.79,143.78,15.61605687]
[1750932023253,4.64676439,143.79,143.78,15.61605687]
[1750932023959,2.22759601,143.79,143.78,15.61605687]
[1750932024462,6.9502,143.81,143.78,15.61605687]
[1750932024757,2.22759601,143.79,143.78,15.61605687]
[1750932028362,35.58,143.83,143.78,15.61605687]
[1750932028664,2.22759601,143.79,143.78,15.61605687]
[1750932029160,2.22777164,143.79,143.78,8.66495687]
[1750932030062,2.22777164,143.79,143.78,15.61625687]
[1750932030955,2.22777164,143.8,143.78,8.66495687]
[1750932031160,2.22777164,143.8,143.79,8.66495687]
[1750932031557,2.22777164,143.8,143.79,15.61575687]
[1750932032158,2.22777164,143.81,143.8,6.9503]
[1750932032760,2.22777164,143.81,143.8,15.61525687]
[1750932033067,35.58,143.83,143.82,6.9494]
[1750932033267,47.63080317,143.83,143.82,6.9494]
[1750932034768,47.63000234,143.83,143.82,6.9494]
[1750932035368,12.05000234,143.83,143.82,6.9494]
[1750932036979,18.99910234,143.83,143.81,6.9496]
[1750932037170,7.36962988,143.82,143.81,6.9496]
[1750932037371,2.22777164,143.82,143.81,6.9496]
[1750932037571,2.22777164,143.82,143.8,15.61505687]
[1750932037768,2.22777164,143.82,143.7,622.19193049]
[1750932037769,2.22777164,143.81,143.79,8.66495687]
[1750932038067,2.22777164,143.8,143.79,8.66495687]
[1750932039482,9.79834529,143.8,143.78,15.61605687]
[1750932039783,2.22777164,143.79,143.78,15.61605687]
[1750932040280,3.480896,143.8,143.78,15.61605687]
[1750932040677,10.431296,143.8,143.78,15.61605687]
[1750932040875,3.480896,143.8,143.78,8.66495687]
[1750932041072,2.41870217,143.79,143.77,15.61645687]
[1750932041278,3.480896,143.79,143.77,15.61645687]
[1750932041475,3.480896,143.79,143.77,8.66495687]
[1750932041674,10.431896,143.79,143.77,8.66495687]
[1750932042787,6.951,143.79,143.77,8.66495687]
[1750932043080,3.480896,143.78,143.77,15.61675687]
[1750932044787,39.020896,143.81,143.79,6.9508]
[1750932045678,9.84881051,143.8,143.79,6.9508]
[1750932046080,3.480896,143.8,143.79,6.9508]
[1750932046284,13.3297273,143.8,143.79,6.9508]
[1750932046684,3.480896,143.8,143.79,6.9508]
[1750932047692,13.29675852,143.8,143.79,6.9508]
[1750932048391,13.29675852,143.8,143.78,6.951]
[1750932048585,3.480896,143.8,143.77,8.66495687]
[1750932049091,3.480896,143.8,143.78,6.9513]
[1750932049292,3.480896,143.8,143.77,8.66495687]
[1750932049994,3.480896,143.8,143.79,6.9508]
[1750932050199,13.31458896,143.8,143.79,6.9508]
[1750932052793,3.480896,143.8,143.79,6.9508]
[1750932052991,13.32497607,143.8,143.79,6.9508]
[1750932053187,13.32497607,143.8,143.78,6.951]
[1750932053387,3.480896,143.8,143.78,6.951]
[1750932056802,10.431296,143.8,143.78,6.951]
[1750932057193,3.480896,143.8,143.78,6.951]
[1750932057400,35.54,143.81,143.79,6.9508]
[1750932057596,3.480896,143.83,143.79,8.66495687]
[1750932057803,3.480896,143.83,143.81,6.9495]
[1750932058000,3.480896,143.83,143.8,8.66495687]
[1750932060304,35.54,143.84,143.82,6.9493]
[1750932060507,9.84989595,143.83,143.82,6.9493]
[1750932060700,9.84989595,143.83,143.79,8.66495687]
[1750932061000,13.33079195,143.82,143.79,8.66495687]
[1750932061205,5.15052567,143.81,143.78,8.66495687]
[1750932061395,3.480896,143.82,143.78,8.66495687]
[1750932061608,5.14957234,143.81,143.78,8.66495687]
[1750932061800,3.480896,143.82,143.78,8.66495687]
[1750932062108,10.430496,143.82,143.79,15.61555687]
[1750932063203,3.480896,143.82,143.8,6.9503]
[1750932063405,3.480896,143.82,143.79,8.66495687]
[1750932063613,39.020896,143.84,143.79,8.66495687]
[1750932063902,9.85048693,143.83,143.82,6.9494]
[1750932064301,5.15085901,143.83,143.82,6.9494]
[1750932065107,9.84974886,143.83,143.81,6.9498]
[1750932065305,39.020896,143.84,143.81,6.9498]
[1750932065506,5.14987782,143.83,143.81,6.9498]
[1750932065706,45.969596,143.84,143.81,6.9498]
[1750932066008,5.14988564,143.83,143.81,6.9498]
[1750932066210,45.969596,143.84,143.81,6.9498]
[1750932067508,39.020896,143.84,143.81,6.9498]
[1750932068011,9.84686359,143.83,143.81,6.9498]
[1750932068307,45.969496,143.84,143.8,11.00355687]
[1750932068308,3.480896,143.82,143.8,11.00355687]
[1750932068513,10.430496,143.82,143.79,10.91245687]
[1750932068703,10.430496,143.82,143.79,8.66495687]
[1750932069310,10.430496,143.82,143.79,15.61565687]
[1750932069512,10.430496,143.82,143.76,37.9128]
[1750932069513,3.480896,143.8,143.78,8.66495687]
[1750932069814,3.480896,143.8,143.78,6.951]
[1750932071920,3.480896,143.8,143.77,6.9516]
[1750932072214,3.480896,143.78,143.77,6.9516]
[1750932072403,3.480896,143.78,143.76,8.66495687]
[1750932073010,10.432396,143.78,143.76,8.66495687]
[1750932074913,10.432396,143.78,143.76,15.61725687]
[1750932075120,6.9515,143.78,143.76,8.66495687]
[1750932075310,10.432396,143.78,143.76,8.66495687]
[1750932075612,6.9518,143.77,143.76,8.66495687]
[1750932075821,9.81811877,143.77,143.74,6.49890263]
[1750932076023,3.480896,143.75,143.73,8.66495687]
[1750932076323,10.433896,143.75,143.73,8.66495687]
[1750932076623,3.480896,143.75,143.73,8.66495687]
[1750932076820,3.480896,143.75,143.74,6.49704927]
[1750932077909,10.433696,143.75,143.74,6.49704927]
[1750932078219,10.433696,143.75,143.73,6.49704927]
[1750932078412,3.480896,143.74,143.73,6.49704927]
[1750932078617,42.4324,143.76,143.73,6.49704927]
[1750932078815,3.480896,143.75,143.74,6.49704927]
[1750932079616,3.480896,143.75,143.74,13.45024927]
[1750932083724,3.480896,143.75,143.74,6.9532]
[1750932083910,3.480896,143.75,143.74,13.45024927]
[1750932085115,3.480896,143.75,143.74,6.9532]
[1750932086120,3.480896,143.75,143.74,13.45024927]
[1750932086717,3.480896,143.77,143.73,8.66495687]
[1750932086923,3.480896,143.77,143.76,6.48333271]
[1750932087122,10.432896,143.77,143.75,6.48333271]
[1750932087533,3.480896,143.77,143.75,6.48333271]
[1750932087825,3.480896,143.77,143.75,13.43583271]
[1750932088028,3.480896,143.77,143.75,6.48333271]
[1750932088621,10.432696,143.77,143.74,13.43623271]
[1750932090521,10.432696,143.77,143.75,6.48333271]
[1750932091133,10.432696,143.77,143.74,13.43623271]
[1750932091927,10.432696,143.77,143.75,6.48333271]
[1750932094225,6.9518,143.77,143.75,6.48333271]
[1750932094425,10.432696,143.77,143.75,6.48333271]
[1750932096931,3.480896,143.77,143.75,13.43613271]
[1750932097327,3.480896,143.77,143.75,6.9528]
[1750932099022,10.432496,143.78,143.75,6.9528]
[1750932101029,6.9518,143.77,143.75,6.9528]
[1750932101429,3.480896,143.76,143.74,13.43633271]
[1750932101728,3.480896,143.77,143.74,13.43633271]
[1750932101922,3.480896,143.77,143.75,6.48333271]
[1750932102428,10.432696,143.77,143.75,6.48333271]
[1750932103527,3.480896,143.77,143.75,13.43603271]
[1750932103723,3.480896,143.77,143.75,6.48333271]
[1750932104121,38.960896,143.79,143.75,6.48333271]
[1750932104329,3.47901151,143.84,143.78,8.66495687]
[1750932104522,3.47901151,143.84,143.8,6.48127233]
[1750932104724,6.9491,143.83,143.8,13.43137233]
[1750932106230,10.42851151,143.82,143.8,6.48127233]
[1750932106427,10.42851151,143.82,143.79,13.43187233]
[1750932107230,3.47901151,143.82,143.79,6.48127233]
[1750932107428,3.47901151,143.84,143.81,6.48127233]
[1750932107733,210.72223362,143.86,143.83,6.9486]
[1750932107930,203.77453362,143.86,143.81,6.48127233]
[1750932108125,3.47901151,143.84,143.81,6.48127233]
[1750932108331,3.47901151,143.84,143.82,6.9491]
[1750932108832,6.9491,143.83,143.8,13.43137233]
[1750932109034,3.47901151,143.82,143.8,13.43137233]
[1750932109536,10.42841151,143.82,143.8,6.48127233]
[1750932113039,3.47901151,143.82,143.8,13.43157233]
[1750932114339,3.47901151,143.82,143.8,6.9503]
[1750932114532,3.47901151,143.82,143.77,13.57997233]
[1750932115241,10.42841151,143.82,143.79,6.9505]
[1750932116633,6.9499,143.81,143.79,6.9505]
[1750932116828,6.9499,143.81,143.77,13.57997233]
[1750932117042,6.9499,143.81,143.78,6.9511]
[1750932117233,3.47901151,143.79,143.75,6.48127233]
[1750932117536,3.47901151,143.78,143.75,6.9525]
[1750932118341,10.43031151,143.78,143.75,6.9525]
[1750932119337,3.47901151,143.76,143.73,35.42]
[1750932119841,3.47901151,143.76,143.73,6.9533]
[1750932120033,3.47901151,143.76,143.71,49.08097233]
[1750932120439,3.47901151,143.76,143.74,6.9529]
[1750932120844,3.47901151,143.78,143.72,6.48127233]
[1750932121041,3.47901151,143.78,143.76,6.952]
[1750932121748,3.47901151,143.78,143.77,6.9518]
[1750932122649,10.42961151,143.8,143.78,6.9513]
[1750932124343,42.3696,143.82,143.79,6.9508]
[1750932124545,45.84861151,143.82,143.79,6.9508]
[1750932124738,38.89901151,143.82,143.78,6.48127233]
[1750932125139,45.84861151,143.82,143.78,13.43207233]
[1750932125342,45.84861151,143.82,143.78,6.48127233]
[1750932125752,45.84861151,143.82,143.79,6.9504]
[1750932127756,38.89901151,143.82,143.8,6.9503]
[1750932128853,38.89901151,143.82,143.78,6.48127233]
[1750932129356,38.89901151,143.82,143.8,6.9501]
[1750932130257,38.89901151,143.82,143.81,6.9499]
[1750932130457,3.47901151,143.82,143.81,6.9499]
[1750932132558,3.47901151,143.82,143.8,6.9502]
[1750932133056,10.42791151,143.83,143.8,6.9499]
[1750932135361,10.42791151,143.83,143.81,6.9498]
[1750932135657,3.47901151,143.83,143.81,6.9498]
[1750932135856,3.47901151,143.83,143.79,6.48127233]
[1750932136357,3.47901151,143.83,143.8,6.95]
[1750932136358,10.42811151,143.83,143.8,6.95]
[1750932136560,10.42811151,143.83,143.79,6.48127233]
[1750932136759,3.47901151,143.81,143.79,6.48127233]
[1750932137059,10.42911151,143.81,143.79,6.48127233]
[1750932137454,10.43072453,143.81,143.79,6.48127233]
[1750932137758,6.9503,143.8,143.79,6.48127233]
[1750932138349,6.9503,143.8,143.78,6.48127233]
[1750932138747,10.43142453,143.79,143.78,6.48127233]
[1750932138958,10.43142453,143.79,143.77,6.48127233]
[1750932139160,10.43142453,143.79,143.76,15.81887233]
[1750932140763,3.48193992,143.78,143.76,15.81887233]
[1750932141059,9.88998336,143.8,143.76,6.48127233]
[1750932141260,9.88998336,143.8,143.66,32.46226866]
[1750932141261,45.50894344,143.79,143.69,11.02815687]
[1750932141464,3.48193992,143.76,143.7,8.66495687]
[1750932141655,35.62,143.78,143.71,8.66495687]
[1750932141864,35.62,143.78,143.73,8.66495687]
[1750932142060,6.9521,143.77,143.72,8.66495687]
[1750932142362,10.43403992,143.77,143.71,8.66495687]
[1750932142559,6.9524,143.76,143.73,6.9534]
[1750932142754,6.9524,143.76,143.71,8.66495687]
[1750932143269,6.9524,143.76,143.72,6.9539]
[1750932144061,6.9528,143.75,143.72,6.9539]
[1750932144363,3.48193992,143.74,143.71,6.9545]
[1750932144668,3.48193992,143.76,143.73,6.9534]
[1750932144858,3.48193992,143.76,143.7,44.28495687]
[1750932146059,3.48193992,143.76,143.74,6.9532]
[1750932147362,42.5714,143.78,143.75,6.9526]
[1750932147563,3.48193992,143.77,143.75,6.9526]
[1750932147971,3.48193992,143.77,143.7,35.62]
[1750932147972,3.48193992,143.77,143.7,8.66495687]
[1750932148171,3.48193992,143.75,143.7,8.66495687]
[1750932148771,35.62,143.78,143.7,8.66495687]
[1750932149067,10.43393992,143.77,143.7,8.66495687]
[1750932149567,10.43393992,143.77,143.74,6.953]
[1750932149963,6.952,143.77,143.74,6.953]
[1750932150162,10.43393992,143.77,143.71,35.64]
[1750932150859,3.48193992,143.77,143.71,35.64]
[1750932151260,35.62,143.78,143.77,6.9518]
[1750932151462,3.48193992,143.79,143.73,8.66495687]
[1750932152065,3.48193992,143.79,143.77,6.9515]
[1750932155173,6.9504,143.8,143.77,6.9515]
[1750932155368,10.43233992,143.8,143.77,6.9515]
[1750932156077,3.48193992,143.8,143.78,6.9513]
[1750932156377,3.48193992,143.8,143.74,2.2426]
[1750932156873,10.43253992,143.8,143.77,6.9515]
[1750932157275,10.43253992,143.8,143.78,6.9513]
[1750932157477,10.43253992,143.8,143.74,2.2426]
[1750932157774,10.43253992,143.8,143.77,6.9515]
[1750932158878,6.9506,143.8,143.77,6.9515]
[1750932159068,10.43253992,143.8,143.77,6.9515]
[1750932160978,6.9509,143.79,143.76,6.9521]
[1750932161179,3.48193992,143.78,143.73,8.66495687]
[1750932161381,3.48193992,143.76,143.72,13.34965687]
[1750932161572,3.48193992,143.76,143.74,6.9532]
[1750932161876,3.48193992,143.76,143.72,4.6847]
[1750932162275,10.43443992,143.76,143.73,6.9535]
[1750932164178,3.48193992,143.76,143.71,8.66495687]
[1750932164376,3.48193992,143.76,143.69,10.98855687]
[1750932164774,10.43543992,143.74,143.69,10.98855687]
[1750932165780,10.43543992,143.74,143.7,6.9548]
[1750932166381,10.43543992,143.74,143.71,6.9547]
[1750932168183,6.954,143.73,143.7,6.955]
[1750932168689,5.15566843,143.76,143.7,6.955]
[1750932168880,3.48193992,143.75,143.71,6.9546]
[1750932169082,6.9537,143.74,143.71,6.9546]
[1750932169292,3.48193992,143.75,143.71,6.9546]
[1750932169785,6.9535,143.74,143.71,6.9546]
[1750932170287,10.43483992,143.75,143.72,6.9542]
[1750932171889,3.48193992,143.75,143.69,10.98855687]
[1750932172590,3.48193992,143.75,143.72,6.9539]
[1750932172591,10.43493992,143.75,143.72,6.9539]
[1750932175001,3.48193992,143.75,143.69,10.98855687]
[1750932175201,6.9525,143.76,143.69,10.98855687]
[1750932175389,6.9525,143.76,143.7,8.66495687]
[1750932175696,6.9525,143.76,143.74,6.9532]
[1750932177602,47.25393992,143.77,143.75,6.9527]
[1750932177790,47.25393992,143.77,143.7,12.14689679]
[1750932177989,40.30193992,143.77,143.7,8.66495687]
[1750932178190,3.48489257,143.72,143.67,13.34185687]
[1750932178691,6.955,143.71,143.68,6.9558]
[1750932179100,10.44015953,143.71,143.68,6.9558]
[1750932179302,47.27905953,143.73,143.7,6.9552]
[1750932180003,40.32515953,143.73,143.68,8.66495687]
[1750932180699,40.32515953,143.73,143.7,6.9551]
[1750932181195,47.27925953,143.73,143.7,6.9551]
[1750932181404,40.32515953,143.73,143.7,6.9551]
[1750932181601,6.9544,143.72,143.69,6.9554]
[1750932184004,6.9544,143.72,143.7,6.9551]
[1750932184604,6.9544,143.72,143.68,8.66495687]
[1750932184605,6.9544,143.72,143.69,6.9554]
[1750932184904,6.9548,143.71,143.69,6.9554]
[1750932186001,6.9544,143.72,143.69,6.9554]
[1750932189908,6.9544,143.72,143.7,6.9551]
[1750932190098,47.27915953,143.73,143.7,6.9551]
[1750932190298,3.48515953,143.74,143.69,8.66495687]
[1750932190502,3.48515953,143.74,143.71,6.9544]
[1750932190712,10.43875953,143.74,143.71,6.9544]
[1750932191910,3.48515953,143.74,143.7,6.9549]
[1750932192311,6.9541,143.73,143.7,6.9549]
[1750932192605,6.9541,143.73,143.71,6.9546]
[1750932194006,10.43865953,143.74,143.71,6.9546]
[1750932195407,10.43865953,143.74,143.72,6.954]
[1750932196516,10.43865953,143.74,143.71,6.9544]
[1750932197608,6.9539,143.73,143.7,6.9549]
[1750932197913,3.48515953,143.74,143.69,2.2912]
[1750932198215,3.48515953,143.72,143.68,8.66495687]
[1750932198506,6.955,143.71,143.68,8.66495687]
[1750932198712,6.955,143.71,143.68,15.62085687]
[1750932199111,3.48515953,143.7,143.67,8.66495687]
[1750932199809,10.44055953,143.7,143.67,8.66495687]
[1750932200601,6.9554,143.7,143.67,8.66495687]
[1750932201215,6.9554,143.7,143.68,8.66495687]
[1750932201513,6.9554,143.7,143.68,15.62085687]
[1750932202806,10.44005953,143.71,143.69,6.9555]
[1750932203007,10.44005953,143.71,143.7,6.49517938]
[1750932204915,18.02275132,143.71,143.65,13.00315829]
[1750932205218,3.48515953,143.66,143.6,13.00315829]
[1750932205519,3.48515953,143.66,143.63,6.9583]
[1750932205816,38.32,143.67,143.6,13.00315829]
[1750932206019,41.80515953,143.67,143.62,6.9586]
[1750932206219,41.80515953,143.67,143.6,13.00315829]
[1750932206411,41.80515953,143.67,143.59,16.48831782]
[1750932206813,6.9573,143.66,143.59,13.00315829]
[1750932207019,38.32,143.67,143.58,13.00315829]
[1750932207409,10.44515953,143.61,143.56,6.9616]
[1750932207609,42.2,143.64,143.56,3.48515953]
[1750932207814,42.2,143.64,143.57,4.8047]
[1750932208016,3.48515953,143.65,143.57,17.80785829]
[1750932208218,3.48515953,143.65,143.57,4.8047]
[1750932208419,6.9586,143.63,143.57,4.8047]
[1750932208718,44.64,143.63,143.57,2.4692]
[1750932208920,3.48515953,143.6,143.54,6.9628]
[1750932209219,44.64,143.63,143.53,4.9513]
[1750932209220,3.48515953,143.58,143.53,4.9513]
[1750932209717,3.48515953,143.57,143.53,4.9513]
[1750932209918,153.62581161,143.62,143.53,11.9143]
[1750932210116,7.54571342,143.61,143.51,5.97225953]
[1750932210418,3.48515953,143.58,143.53,6.963]
[1750932210813,153.62581161,143.62,143.51,10.81605953]
[1750932211014,10.44565953,143.59,143.55,6.9624]
[1750932211211,153.62581161,143.62,143.51,7.3309]
[1750932211415,3.48515953,143.58,143.51,7.3309]
[1750932211614,3.48515953,143.58,143.54,6.9628]
[1750932212419,10.44625953,143.58,143.54,6.9628]
[1750932212722,10.44625953,143.58,143.53,6.9633]
[1750932212921,6.9615,143.57,143.51,7.3309]
[1750932213115,3.48515953,143.58,143.48,106.58090119]
[1750932213323,3.48515953,143.53,143.46,3.48515953]
[1750932213521,3.48515953,143.54,143.46,3.48515953]
[1750932213818,6.9621,143.56,143.48,3.48515953]
[1750932214025,3.48515953,143.56,143.48,3.48515953]
[1750932214225,3.48515953,143.52,143.47,6.9658]
[1750932214527,3.48515953,143.52,143.45,53.5042]
[1750932214727,3.48515953,143.52,143.49,6.9653]
[1750932215222,3.48515953,143.53,143.49,6.9653]
[1750932215419,3.48515953,143.51,143.43,600.98]
[1750932215618,3.48515953,143.51,143.43,651.08515953]
[1750932215810,3.48515953,143.52,143.45,3.48515953]
[1750932216017,3.48515953,143.52,143.45,2.471]
[1750932216824,3.48515953,143.52,143.35,628.21662874]
[1750932217023,3.48515953,143.48,143.4,2.2507]
[1750932217321,3.48515953,143.48,143.41,3.48515953]
[1750932217524,3.48515953,143.48,143.46,6.9667]
[1750932217826,3.48515953,143.48,143.41,50.10515953]
[1750932218015,3.48515953,143.48,143.41,46.62]
[1750932218216,3.48515953,143.48,143.45,6.967]
[1750932218423,3.48515953,143.48,143.42,3.48515953]
[1750932218721,3.48515953,143.48,143.41,46.62]
[1750932218722,3.48515953,143.45,143.4,2.2507]
[1750932219125,3.48515953,143.45,143.41,6.9691]
[1750932219520,10.45275953,143.45,143.41,6.9691]
[1750932219716,3.48515953,143.45,143.4,9.2202]
[1750932219920,3.48515953,143.45,143.37,4.8092]
[1750932219921,6.9676,143.45,143.37,4.8092]
[1750932220118,46.64,143.46,143.37,8.29435953]
[1750932220318,46.64,143.46,143.39,3.48515953]
[1750932220519,46.64,143.46,143.4,3.48515953]
[1750932220722,601.52,143.51,143.39,46.64]
[1750932220723,3.48515953,143.51,143.44,3.48515953]
[1750932220928,50.12515953,143.54,143.46,3.48515953]
[1750932221127,50.12515953,143.54,143.47,2.3759]
[1750932221428,3.48515953,143.52,143.47,2.3759]
[1750932221823,3.48515953,143.52,143.51,6.9644]
[1750932222224,50.12515953,143.54,143.47,2.3759]
[1750932222623,46.64,143.54,143.47,2.3759]
[1750932222825,46.64,143.54,143.47,49.0159]
[1750932223134,46.64,143.54,143.47,52.50105953]
[1750932223634,3.48515953,143.55,143.47,52.50105953]
[1750932223829,648.16,143.58,143.47,52.50105953]
[1750932224033,3.48515953,143.56,143.49,3.48515953]
[1750932224334,3.48515953,143.58,143.51,3.48515953]
[1750932224521,3.48515953,143.58,143.52,49.0244]
[1750932224835,200.26581161,143.62,143.52,49.0244]
[1750932224836,6.9605,143.6,143.52,49.0244]
[1750932225037,3.48515953,143.59,143.52,49.0244]
[1750932225425,3.48515953,143.6,143.52,49.0244]
[1750932225735,3.48515953,143.6,143.53,5.92145953]
[1750932226328,5.23653415,143.6,143.55,6.9624]
[1750932226532,5.23653415,143.6,143.53,2.4363]
[1750932227831,6.9606,143.59,143.53,2.4363]
[1750932228137,5.23653415,143.6,143.53,2.4363]
[1750932228435,5.23653415,143.6,143.55,6.962]
[1750932228936,6.9611,143.58,143.55,6.962]
[1750932230533,6.9607,143.59,143.56,6.9619]
[1750932230736,200.26581161,143.62,143.56,6.9619]
[1750932230938,205.50234576,143.62,143.53,2.4363]
[1750932231628,5.23653415,143.6,143.53,2.4363]
[1750932232137,5.23653415,143.61,143.53,2.4363]
[1750932232336,200.26581161,143.62,143.53,2.4363]
[1750932232533,5.23653415,143.6,143.53,2.4363]
[1750932233129,6.9612,143.58,143.53,2.4363]
[1750932233438,5.23653415,143.6,143.53,2.4363]
[1750932233643,6.9607,143.59,143.56,6.9619]
[1750932235540,6.9607,143.59,143.53,2.4363]
[1750932235940,12.19673415,143.6,143.57,6.9614]
[1750932236730,6.9602,143.6,143.58,6.9609]
[1750932237131,6.9602,143.6,143.53,2.4363]
[1750932237335,6.9605,143.59,143.56,6.9615]
[1750932237739,46.64,143.62,143.53,7.67227236]
[1750932238040,606.2072,143.65,143.53,7.67227236]
[1750932238041,7.49067236,143.65,143.55,5.23597236]
[1750932238238,6.9593,143.62,143.56,46.64]
[1750932238435,6.9593,143.62,143.59,6.9602]
[1750932238635,5.23379955,143.64,143.59,6.9602]
[1750932238834,6.9587,143.63,143.56,46.64]
[1750932239037,5.23379955,143.64,143.56,51.87379955]
[1750932239231,46.64,143.67,143.58,5.23379955]
[1750932239435,53.5969,143.67,143.59,7.0845]
[1750932239639,46.64,143.67,143.6,46.96]
[1750932239834,53.5966,143.67,143.6,46.96]
[1750932240035,53.5966,143.67,143.63,6.9582]
[1750932240438,46.64,143.67,143.6,46.96]
[1750932240644,46.64,143.67,143.62,6.9587]
[1750932240831,6.9574,143.66,143.6,46.96]
[1750932241337,46.64,143.67,143.62,6.9588]
[1750932241543,6.9577,143.65,143.62,6.9588]
[1750932241934,5.23379955,143.66,143.61,6.9593]
[1750932242243,5.23379955,143.66,143.6,46.96]
[1750932242445,5.23379955,143.66,143.61,6.9592]
[1750932242642,6.9582,143.64,143.61,6.9592]
[1750932243343,46.64,143.67,143.6,46.96]
[1750932243544,5.23379955,143.65,143.6,46.96]
[1750932244042,5.23379955,143.63,143.59,2.4155]
[1750932244437,6.9593,143.62,143.59,9.3757]
[1750932244940,12.19269955,143.63,143.6,6.9599]
[1750932245942,5.23379955,143.63,143.59,2.4155]
[1750932247236,46.64,143.67,143.59,2.4155]
[1750932247443,5.23379955,143.63,143.59,2.4155]
[1750932248041,12.19269955,143.63,143.6,6.9597]
[1750932248238,6.9589,143.63,143.59,2.4155]
[1750932248445,46.64,143.67,143.59,2.4155]
[1750932248748,10.44669789,143.65,143.62,6.9588]
[1750932249645,10.44669789,143.65,143.63,6.9584]
[1750932249847,50.12879789,143.67,143.59,2.4155]
[1750932250047,50.12879789,143.67,143.6,2.4457]
[1750932250248,6.9573,143.66,143.63,6.9583]
[1750932250650,50.12879789,143.67,143.6,2.4457]
[1750932250851,50.12879789,143.67,143.6,49.3857]
[1750932251052,57.08569789,143.67,143.65,6.9575]
[1750932251453,57.08569789,143.67,143.64,6.9578]
[1750932251648,6.9571,143.66,143.64,6.9578]
[1750932251852,50.12879789,143.67,143.64,6.9578]
[1750932252355,57.08559789,143.67,143.64,6.9578]
[1750932253048,6.9572,143.66,143.63,6.9583]
[1750932253650,6.9572,143.66,143.64,6.958]
[1750932254448,10.44599789,143.66,143.64,6.958]
[1750932255156,10.44599789,143.66,143.63,6.9583]
[1750932255357,6.9577,143.65,143.63,6.9583]
[1750932255852,3.48879789,143.66,143.64,6.958]
[1750932257355,10.44609789,143.66,143.64,6.958]
[1750932258255,3.48879789,143.66,143.64,6.958]
[1750932258648,50.12879789,143.67,143.65,6.9575]
[1750932258851,50.12879789,143.67,143.6,49.3857]
[1750932259052,3.48879789,143.67,143.61,2.4773]
[1750932259255,3.48879789,143.67,143.66,6.9571]
[1750932260054,10.44469789,143.69,143.67,6.9566]
[1750932260255,3.48879789,143.69,143.61,2.4773]
[1750932260650,46.94,143.71,143.61,2.4773]
[1750932260847,3.48879789,143.69,143.61,5.96609789]
[1750932261057,3.48879789,143.69,143.66,6.9567]
[1750932261746,10.44469789,143.69,143.66,6.9567]
[1750932262053,10.44469789,143.69,143.67,6.9566]
[1750932262560,10.44469789,143.69,143.61,5.96609789]
[1750932262859,10.44469789,143.69,143.66,6.9568]
[1750932263062,3.48879789,143.69,143.61,2.4773]
[1750932263359,3.48879789,143.67,143.61,2.4773]
[1750932263561,10.44559789,143.67,143.61,2.4773]
[1750932263749,3.48879789,143.67,143.61,2.4773]
[1750932264458,3.48879789,143.67,143.65,6.9572]
[1750932264658,3.48879789,143.67,143.61,2.4773]
[1750932265059,3.48879789,143.67,143.61,8.92947874]
[1750932265361,3.48879789,143.67,143.65,6.9571]
[1750932266463,10.44320045,143.68,143.65,6.9571]
[1750932266666,10.44320045,143.68,143.62,6.45217874]
[1750932266667,46.94,143.71,143.62,9.93897919]
[1750932266963,46.94,143.71,143.64,9.93897919]
[1750932267271,3.48680045,143.73,143.65,55.85467874]